fUST/lending_fUST_20240210
["ID","MTS","AMOUNT","RATE_DAILY","PERIOD"]
[313658365,1707549042858,-683.66,0.00022246,2]
[313658366,1707549042870,-2386.92,0.00022246,2]
[313658367,1707549042880,-1314.25,0.00022246,2]
[313658368,1707549042892,-500.0,0.00022246,2]
[313658369,1707549042902,-500.0,0.00022246,2]
[313658370,1707549042914,-2013.17,0.00022246,2]
[313658371,1707549042925,-500.0,0.00022246,2]
[313658372,1707549042936,-500.0,0.00022246,2]
[313658373,1707549042948,-8237.33,0.00022246,2]
[313658374,1707549042957,-2061.54,0.00022246,2]
[313658375,1707549042967,-2592.71,0.00022246,2]
[313658376,1707549042981,-729.8,0.00022246,2]
[313658377,1707549042992,-500.0,0.00022246,2]
[313658378,1707549043003,-1699.05,0.00022246,2]
[313658379,1707549043016,-151.0,0.00022333,2]
[313658380,1707549043027,-280.0,0.00022335,7]
[313658382,1707549043038,-500.0,0.00022356,2]
[313658384,1707549043050,-500.0,0.00022356,2]
[313658386,1707549043061,-500.0,0.00022356,2]
[313658387,1707549043072,-543.25,0.00022356,2]
[313658388,1707549043084,-500.0,0.00022356,2]
[313658389,1707549043096,-500.0,0.00022356,2]
[313658390,1707549043108,-500.0,0.00022356,2]
[313658392,1707549043121,-1196.16,0.00022356,2]
[313658393,1707549043133,-561.23,0.00022356,2]
[313658395,1707549043145,-548.51,0.00022356,2]
[313658398,1707549043157,-601.34,0.00022356,2]
[313658400,1707549043167,-468.68662205,0.00022356,2]
[313658402,1707549043177,-2868.7,0.00022356,2]
[313658404,1707549043187,-1847.21,0.00022356,2]
[313658406,1707549043197,-2928.01,0.00022356,2]
[313658408,1707549043208,-500.0,0.00022356,2]
[313658410,1707549043220,-548.02243402,0.00022356,2]
[313658412,1707549043230,-500.0,0.00022356,2]
[313658415,1707549043241,-500.0,0.00022356,2]
[313658417,1707549043252,-500.0,0.00022356,2]
[313658419,1707549043264,-500.0,0.00022356,2]
[313658420,1707549043275,-720.73,0.00022356,2]
[313658422,1707549043285,-1040.14,0.00022356,2]
[313658424,1707549043295,-500.0,0.00022356,2]
[313658426,1707549043305,-500.0,0.00022356,2]
[313658428,1707549043316,-362.79273982,0.00022356,2]
[313658430,1707549043326,-500.0,0.00022356,2]
[313658431,1707549043337,-613.59187272,0.00022356,2]
[313658433,1707549043347,-500.0,0.00022356,2]
[313658434,1707549043358,-1117.77,0.00022356,2]
[313658435,1707549043368,-500.0,0.00022356,2]
[313658436,1707549043379,-500.0,0.00022356,2]
[313658437,1707549043389,-2219.34,0.00022356,2]
[313658438,1707549043400,-500.0,0.00022356,2]
[313658439,1707549043410,-607.69,0.00022356,2]
[313658440,1707549043421,-581.09,0.00022356,2]
[313658442,1707549043431,-500.0,0.00022356,2]
[313658443,1707549043441,-1744.26,0.00022356,2]
[313658444,1707549043451,-500.0,0.00022356,2]
[313658445,1707549043462,-500.0,0.00022356,2]
[313658446,1707549043472,-2371.32,0.00022356,2]
[313658448,1707549043483,-500.0,0.00022356,2]
[313658450,1707549043493,-500.0,0.00022356,2]
[313658451,1707549043503,-1295.76,0.00022356,2]
[313658452,1707549043513,-3378.66,0.00022356,2]
[313658453,1707549043523,-500.0,0.00022356,2]
[313658454,1707549043534,-944.77,0.00022356,2]
[313658455,1707549043545,-500.0,0.00022356,2]
[313658456,1707549043556,-500.0,0.00022356,2]
[313658457,1707549043566,-500.0,0.00022356,2]
[313658458,1707549043577,-695.13,0.00022356,2]
[313658459,1707549043587,-13967.78,0.00022356,2]
[313658460,1707549043598,-500.0,0.00022356,2]
[313658461,1707549043608,-24461.09,0.00022356,2]
[313658462,1707549043618,-873.57,0.00022356,2]
[313658463,1707549043629,-2464.06,0.00022356,2]
[313658464,1707549043640,-1264.14,0.00022356,2]
[313658465,1707549043650,-500.0,0.00022356,2]
[313658466,1707549043661,-500.0,0.00022356,2]
[313658467,1707549043672,-10511.76,0.00022356,2]
[313658468,1707549043683,-1143.24,0.00022356,2]
[313658469,1707549043696,-500.0,0.00022356,2]
[313658470,1707549043706,-14657.89,0.00022356,2]
[313658471,1707549043718,-500.0,0.00022356,2]
[313658472,1707549043729,-6334.61,0.00022356,2]
[313658473,1707549043743,-744.3,0.00022356,2]
[313658474,1707549043754,-13572.45,0.00022356,2]
[313658475,1707549043765,-1298.23,0.00022356,2]
[313658476,1707549043775,-9750.34,0.00022356,2]
[313658477,1707549043787,-7713.06,0.00022356,2]
[313658478,1707549043797,-683.66,0.00022356,2]
[313658479,1707549043808,-2386.92,0.00022356,2]
[313658480,1707549043818,-1314.25,0.00022356,2]
[313658481,1707549043829,-500.0,0.00022356,2]
[313658482,1707549043839,-500.0,0.00022356,2]
[313658483,1707549043850,-2013.17,0.00022356,2]
[313658484,1707549043860,-500.0,0.00022356,2]
[313658485,1707549043871,-500.0,0.00022356,2]
[313658486,1707549043881,-8237.33,0.00022356,2]
[313658487,1707549043892,-500.0,0.00022356,2]
[313658488,1707549043902,-2061.54,0.00022356,2]
[313658489,1707549043912,-2592.71,0.00022356,2]
[313658490,1707549043923,-729.8,0.00022356,2]
[313658491,1707549043933,-500.0,0.00022356,2]
[313658492,1707549043944,-1699.05,0.00022356,2]
[313658493,1707549043954,-166.666666,0.00022431,2]
[313658494,1707549043964,-500.0,0.00022465,2]
[313658495,1707549043975,-500.0,0.00022465,2]
[313658496,1707549043987,-500.0,0.00022465,2]
[313658497,1707549043999,-543.25,0.00022465,2]
[313658498,1707549044010,-500.0,0.00022465,2]
[313658499,1707549044021,-500.0,0.00022465,2]
[313658500,1707549044032,-203.91802633,0.00022465,2]
[313658501,1707549044043,-1196.16,0.00022465,2]
[313658502,1707549044054,-561.23,0.00022465,2]
[313658503,1707549044065,-548.51,0.00022465,2]
[313658504,1707549044076,-601.34,0.00022465,2]
[313658505,1707549044087,-2868.7,0.00022465,2]
[313658506,1707549044096,-1847.21,0.00022465,2]
[313658507,1707549044256,-2928.01,0.00022465,2]
[313658508,1707549044272,-500.0,0.00022465,2]
[313658509,1707549044281,-315.31556507,0.00022465,2]
[313658510,1707549044291,-500.0,0.00022465,2]
[313658511,1707549044300,-500.0,0.00022465,2]
[313658512,1707549044309,-500.0,0.00022465,2]
[313658513,1707549044319,-720.73,0.00022465,2]
[313658514,1707549044328,-1040.14,0.00022465,2]
[313658515,1707549044337,-500.0,0.00022465,2]
[313658516,1707549044347,-500.0,0.00022465,2]
[313658517,1707549044355,-584.07395093,0.00022465,2]
[313658518,1707549044365,-500.0,0.00022465,2]
[313658519,1707549044374,-1117.77,0.00022465,2]
[313658520,1707549044383,-500.0,0.00022465,2]
[313658521,1707549044392,-500.0,0.00022465,2]
[313658522,1707549044401,-2219.34,0.00022465,2]
[313658523,1707549044410,-500.0,0.00022465,2]
[313658524,1707549044418,-607.69,0.00022465,2]
[313658525,1707549044427,-581.09,0.00022465,2]
[313658526,1707549044436,-500.0,0.00022465,2]
[313658527,1707549044445,-1744.26,0.00022465,2]
[313658528,1707549044454,-500.0,0.00022465,2]
[313658529,1707549044463,-594.15416092,0.00022465,2]
[313658530,1707549044472,-2371.32,0.00022465,2]
[313658531,1707549044481,-500.0,0.00022465,2]
[313658532,1707549044489,-500.0,0.00022465,2]
[313658533,1707549044499,-1295.76,0.00022465,2]
[313658534,1707549044507,-3378.66,0.00022465,2]
[313658535,1707549044516,-500.0,0.00022465,2]
[313658536,1707549044525,-944.77,0.00022465,2]
[313658537,1707549044534,-500.0,0.00022465,2]
[313658538,1707549044543,-500.0,0.00022465,2]
[313658539,1707549044552,-500.0,0.00022465,2]
[313658540,1707549044561,-695.13,0.00022465,2]
[313658541,1707549044574,-13967.78,0.00022465,2]
[313658542,1707549044583,-500.0,0.00022465,2]
[313658543,1707549044591,-24461.09,0.00022465,2]
[313658544,1707549044600,-873.57,0.00022465,2]
[313658545,1707549044609,-2464.06,0.00022465,2]
[313658546,1707549044619,-1264.14,0.00022465,2]
[313658547,1707549044628,-500.0,0.00022465,2]
[313658548,1707549044637,-500.0,0.00022465,2]
[313658549,1707549044647,-10511.76,0.00022465,2]
[313658550,1707549044656,-1143.24,0.00022465,2]
[313658551,1707549044665,-500.0,0.00022465,2]
[313658552,1707549044675,-5143.62689687,0.00022465,2]
[313658565,1707549373855,2000.0,0.00029,30]
[313658574,1707550116190,3100.006,0.00029,30]
[313658666,1707550238785,-154.8915759,0.00020688,2]
[313658668,1707550238795,-163.53702,0.00020689,2]
[313658670,1707550238804,-668.31145872,0.00020904,2]
[313658675,1707550238844,-24231.68854128,0.00020904,2]
[313658677,1707550238853,-3000.0,0.000217,2]
[313658679,1707550238862,-150.0,0.000219,2]
[313658681,1707550238870,-200.0423151,0.000219,2]
[313658683,1707550238879,-2201.54,0.00021907,3]
[313658685,1707550238888,-500.0,0.00021917,2]
[313658687,1707550238898,-540.55,0.00021917,2]
[313658689,1707550238907,-500.0,0.00021917,2]
[313658691,1707550238916,-500.0,0.00021917,2]
[313658693,1707550238925,-870.46,0.00021917,2]
[313658695,1707550238934,-939.19,0.00021917,2]
[313658697,1707550238944,-976.81,0.00021917,2]
[313658699,1707550238953,-500.0,0.00021917,2]
[313658701,1707550238962,-500.0,0.00021917,2]
[313658703,1707550238970,-500.0,0.00021917,2]
[313658705,1707550238979,-500.0,0.00021917,2]
[313658707,1707550238988,-500.0,0.00021917,2]
[313658709,1707550238997,-500.0,0.00021917,2]
[313658711,1707550239006,-500.0,0.00021917,2]
[313658713,1707550239015,-500.0,0.00021917,2]
[313658715,1707550239024,-893.86,0.00021917,2]
[313658717,1707550239033,-618.57,0.00021917,2]
[313658719,1707550239043,-500.0,0.00021917,2]
[313658722,1707550239053,-500.0,0.00021917,2]
[313658723,1707550239062,-500.0,0.00021917,2]
[313658725,1707550239074,-500.0,0.00021917,2]
[313658727,1707550239083,-1975.58,0.00021917,2]
[313658729,1707550239093,-237.52081382,0.00021917,2]
[313658731,1707550239103,-451.11556839,0.00021917,2]
[313658734,1707550239112,-500.0,0.00021917,2]
[313658735,1707550239121,-500.0,0.00021917,2]
[313658737,1707550239130,-500.0,0.00021917,2]
[313658740,1707550239140,-500.0,0.00021917,2]
[313658743,1707550239160,-506.19162172,0.00021917,2]
[313658745,1707550239170,-500.0,0.00021917,2]
[313658747,1707550239180,-500.0,0.00021917,2]
[313658749,1707550239189,-500.0,0.00021917,2]
[313658751,1707550239198,-6925.64,0.00021917,2]
[313658753,1707550239208,-500.0,0.00021917,2]
[313658755,1707550239218,-500.0,0.00021917,2]
[313658757,1707550239227,-1466.72,0.00021917,2]
[313658759,1707550239236,-2794.26,0.00021917,2]
[313658761,1707550239246,-500.0,0.00021917,2]
[313658763,1707550239255,-1782.45,0.00021917,2]
[313658765,1707550239264,-500.0,0.00021917,2]
[313658767,1707550239274,-500.0,0.00021917,2]
[313658769,1707550239284,-500.0,0.00021917,2]
[313658771,1707550239293,-500.0,0.00021917,2]
[313658773,1707550239302,-1441.36,0.00021917,2]
[313658775,1707550239312,-1731.78,0.00021917,2]
[313658777,1707550239322,-9052.52,0.00021917,2]
[313658779,1707550239332,-1142.0,0.00021917,2]
[313658781,1707550239342,-500.0,0.00021917,2]
[313658783,1707550239352,-6312.79,0.00021917,2]
[313658785,1707550239362,-2270.22,0.00021917,2]
[313658787,1707550239372,-1070.83,0.00021917,2]
[313658789,1707550239381,-500.0,0.00021917,2]
[313658791,1707550239390,-500.0,0.00021917,2]
[313658793,1707550239399,-500.0,0.00021917,2]
[313658795,1707550239409,-500.0,0.00021917,2]
[313658797,1707550239419,-12114.59,0.00021917,2]
[313658799,1707550239428,-500.0,0.00021917,2]
[313658801,1707550239437,-500.0,0.00021917,2]
[313658824,1707550239639,-1142.35196962,0.00021917,2]
[313658827,1707550239654,-1156.6432218,0.00021917,2]
[313659461,1707550245909,-516.850155,0.00021907,3]
[313659464,1707550245921,-1758.079845,0.00021907,3]
[313659466,1707550245929,-1813.92722735,0.00021917,2]
[313659468,1707550245946,-891.64744701,0.00021917,2]
[313659470,1707550245957,-378.79359255,0.00021917,2]
[313659473,1707550245968,-261.546,0.00021917,2]
[313660406,1707550273464,2000.0,0.00029,30]
[313660410,1707551173415,2000.0,0.00029,30]
[313660483,1707551433835,-4726.3,0.00020446,2]
[313660484,1707551433846,-463.7665836,0.00020446,2]
[313660485,1707551433858,-19709.9334164,0.00020446,2]
[313660486,1707551433867,-193.619591,0.00020526,2]
[313660487,1707551433877,-1895.77,0.00021147,3]
[313660488,1707551433886,-1579.81,0.00021147,3]
[313660489,1707551433895,-1316.51,0.00021147,3]
[313660490,1707551433904,-50000.0,0.00021157,2]
[313660491,1707551433914,-158.69588426,0.00021367,2]
[313660492,1707551433923,-200.0,0.00021467,7]
[313660493,1707551433932,-620.81037088,0.00021661,2]
[313660494,1707551433941,-316.5371774,0.000219,2]
[313660495,1707551433950,-142.42901013,0.00021915,2]
[313660499,1707551438041,-1097.09,0.00021907,3]
[313660500,1707551438051,-763.92844602,0.00021915,2]
[313660501,1707551438060,-500.0,0.00021916,2]
[313660502,1707551438069,-500.0,0.00021916,2]
[313660503,1707551438078,-500.0,0.00021916,2]
[313660504,1707551438087,-500.0,0.00021916,2]
[313660505,1707551438097,-419.74422083,0.00021916,2]
[313660506,1707551438105,-174.00739868,0.00021916,2]
[313660507,1707551438114,-500.0,0.00021917,2]
[313660508,1707551438123,-616.08997912,0.00021917,2]
[313660509,1707551438132,-500.0,0.00021917,2]
[313660510,1707551438141,-500.0,0.00021917,2]
[313660511,1707551438150,-500.0,0.00021917,2]
[313660512,1707551438159,-592.8,0.00021917,2]
[313660513,1707551438168,-32.67299877,0.00021917,2]
[313660661,1707551444657,-823.93700123,0.00021917,2]
[313660663,1707551444667,-352.74278914,0.00021917,2]
[313660669,1707551444712,-29.04348599,0.00021917,2]
[313660671,1707551444722,-428.09689003,0.00021917,2]
[313660674,1707551444734,-71.90310997,0.00021917,2]
[313660676,1707551444742,-192.98956459,0.00021917,2]
[313660821,1707551586949,150.87929656,0.00027906,30]
[313660830,1707552072155,2000.0,0.00029,30]
[313660843,1707552546090,-154.90705577,0.00019668,2]
[313660844,1707552546111,-0.9325722,0.00019669,2]
[313660915,1707552638163,-214.1569826,0.00019663,2]
[313660917,1707552638173,-181.61100377,0.00019664,2]
[313660919,1707552638182,-167.58112914,0.00019664,2]
[313660920,1707552638191,-154.90705577,0.00019665,2]
[313660922,1707552638204,-159.38167513,0.00019931,2]
[313660923,1707552638216,-169.10068,0.00019932,2]
[313660924,1707552638229,-1457.26147359,0.00020349,2]
[313660927,1707552638250,-23442.73852641,0.00020349,2]
[313660929,1707552638261,-193.619591,0.00020448,2]
[313660931,1707552638272,-2822.61727091,0.00020913,2]
[313660933,1707552638282,-200.0,0.00021365,7]
[313660935,1707552638292,-153.9323585,0.00021752,2]
[313660938,1707552638304,-155.57829629,0.00021803,2]
[313660940,1707552638315,-312.07028377,0.00021815,2]
[313660941,1707552638326,-312.07028377,0.00021843,2]
[313660942,1707552638337,-312.07028377,0.00021871,2]
[313660943,1707552638349,-312.07028377,0.00021899,2]
[313660944,1707552638360,-651.85853467,0.00021913,2]
[313660945,1707552638371,-2110.10399171,0.00021914,2]
[313660946,1707552638384,-820.86834729,0.00021915,2]
[313660947,1707552638395,-2824.57034742,0.00021915,2]
[313660948,1707552638407,-20933.53573456,0.00021915,2]
[313660950,1707552638418,-244.36554655,0.00021915,2]
[313660951,1707552638428,-167.19218389,0.00021915,2]
[313660953,1707552638438,-1201.92575629,0.00021915,2]
[313660955,1707552638449,-680.94052688,0.00021915,2]
[313660957,1707552638460,-11736.20557969,0.00021915,2]
[313660958,1707552638471,-13773.56058904,0.00021915,2]
[313660959,1707552638484,-500.0,0.00021915,2]
[313660960,1707552638495,-500.0,0.00021915,2]
[313660961,1707552638506,-500.0,0.00021915,2]
[313660962,1707552638516,-500.0,0.00021915,2]
[313660963,1707552638529,-181.50319077,0.00021915,2]
[313660964,1707552638539,-500.0,0.00021915,2]
[313660965,1707552638552,-500.0,0.00021915,2]
[313660966,1707552638563,-500.0,0.00021915,2]
[313660967,1707552638573,-500.0,0.00021915,2]
[313660968,1707552638583,-564.91966224,0.00021915,2]
[313660969,1707552638593,-500.0,0.00021915,2]
[313660970,1707552638602,-500.0,0.00021915,2]
[313660971,1707552638615,-500.0,0.00021915,2]
[313660972,1707552638626,-500.0,0.00021915,2]
[313660973,1707552638637,-550.70355779,0.00021915,2]
[313660974,1707552638648,-500.0,0.00021915,2]
[313660975,1707552638660,-500.0,0.00021915,2]
[313660976,1707552638670,-500.0,0.00021915,2]
[313660977,1707552638682,-500.0,0.00021915,2]
[313660978,1707552638691,-500.0,0.00021915,2]
[313660979,1707552638702,-500.0,0.00021915,2]
[313660980,1707552638713,-425.66074786,0.00021915,2]
[313660981,1707552638724,-500.0,0.00021915,2]
[313660982,1707552638736,-500.0,0.00021915,2]
[313660983,1707552638749,-500.0,0.00021915,2]
[313660984,1707552638761,-500.0,0.00021915,2]
[313660985,1707552638774,-500.0,0.00021915,2]
[313660986,1707552638786,-500.0,0.00021915,2]
[313660987,1707552638798,-500.0,0.00021915,2]
[313660988,1707552638809,-500.0,0.00021915,2]
[313660989,1707552638820,-500.0,0.00021915,2]
[313660990,1707552638833,-500.0,0.00021915,2]
[313660991,1707552638844,-500.0,0.00021915,2]
[313660992,1707552638853,-500.0,0.00021915,2]
[313660993,1707552638863,-500.0,0.00021915,2]
[313660994,1707552638873,-500.0,0.00021915,2]
[313660995,1707552638882,-500.0,0.00021915,2]
[313660996,1707552638892,-500.0,0.00021915,2]
[313660997,1707552638902,-500.0,0.00021915,2]
[313660998,1707552638913,-500.0,0.00021915,2]
[313660999,1707552638925,-500.0,0.00021915,2]
[313661000,1707552638936,-572.41516111,0.00021915,2]
[313661001,1707552638946,-500.0,0.00021915,2]
[313661002,1707552638956,-500.0,0.00021915,2]
[313661003,1707552638967,-500.0,0.00021915,2]
[313661004,1707552638978,-500.0,0.00021915,2]
[313661005,1707552638989,-500.0,0.00021915,2]
[313661006,1707552638999,-500.0,0.00021915,2]
[313661007,1707552639009,-500.0,0.00021915,2]
[313661008,1707552639019,-500.0,0.00021915,2]
[313661009,1707552639030,-500.0,0.00021915,2]
[313661010,1707552639040,-500.0,0.00021915,2]
[313661011,1707552639050,-500.0,0.00021915,2]
[313661012,1707552639061,-500.0,0.00021915,2]
[313661013,1707552639072,-500.0,0.00021915,2]
[313661014,1707552639082,-500.0,0.00021915,2]
[313661015,1707552639094,-500.0,0.00021915,2]
[313661016,1707552639104,-500.0,0.00021915,2]
[313661017,1707552639114,-500.0,0.00021915,2]
[313661018,1707552639124,-500.0,0.00021915,2]
[313661019,1707552639135,-500.0,0.00021915,2]
[313661020,1707552639145,-500.0,0.00021915,2]
[313661021,1707552639155,-500.0,0.00021915,2]
[313661022,1707552639165,-500.0,0.00021915,2]
[313661023,1707552639175,-500.0,0.00021915,2]
[313661024,1707552639185,-500.0,0.00021915,2]
[313661025,1707552639196,-500.0,0.00021915,2]
[313661026,1707552639206,-389.5821048,0.00021915,2]
[313661027,1707552639216,-500.0,0.00021915,2]
[313661028,1707552639227,-3756.52064681,0.00021916,2]
[313661029,1707552639238,-12034.72735727,0.00021916,2]
[313661054,1707552641320,-756.18,0.00021916,2]
[313661089,1707552644622,-1366.87,0.00021907,3]
[313661090,1707552644632,-5939.9209938,0.00021916,2]
[313661091,1707552644644,-407.81733669,0.00021916,2]
[313661092,1707552644654,-175.72920133,0.00021916,2]
[313661093,1707552644663,-500.0,0.00021917,2]
[313661094,1707552644673,-446.43262268,0.00021917,2]
[313661095,1707552644682,-338.94578728,0.00021917,2]
[313661096,1707552644691,-500.0,0.00021917,2]
[313661097,1707552644700,-500.0,0.00021917,2]
[313661098,1707552644709,-500.0,0.00021917,2]
[313661099,1707552644718,-267.02098583,0.00021917,2]
[313661114,1707552646213,-232.97901417,0.00021917,2]
[313661115,1707552646223,-500.0,0.00021917,2]
[313661116,1707552646232,-500.0,0.00021917,2]
[313661117,1707552646241,-500.0,0.00021917,2]
[313661118,1707552646250,-500.0,0.00021917,2]
[313661119,1707552646260,-500.0,0.00021917,2]
[313661120,1707552646269,-187.89360843,0.00021917,2]
[313661121,1707552646281,-646.29639157,0.00021917,2]
[313661122,1707552646291,-500.0,0.00021917,2]
[313661123,1707552646300,-280.28605611,0.00021917,2]
[313661124,1707552646311,-219.71394389,0.00021917,2]
[313661125,1707552646320,-500.0,0.00021917,2]
[313661126,1707552646329,-359.36330333,0.00021917,2]
[313661127,1707552646340,-146.22083371,0.00021917,2]
[313661128,1707552646349,-351.04616072,0.00021917,2]
[313661129,1707552646358,-4.36739446,0.00021917,2]
[313661130,1707552646369,-495.63260554,0.00021917,2]
[313661131,1707552646378,-520.11,0.00021917,2]
[313661132,1707552646387,-1893.27,0.00021917,2]
[313661133,1707552646396,-603.24422199,0.00021917,2]
[313661134,1707552646405,-500.0,0.00021917,2]
[313661135,1707552646414,-500.0,0.00021917,2]
[313661136,1707552646423,-1998.72,0.00021917,2]
[313661137,1707552646432,-500.0,0.00021917,2]
[313661138,1707552646442,-500.0,0.00021917,2]
[313661139,1707552646451,-500.0,0.00021917,2]
[313661140,1707552646460,-500.0,0.00021917,2]
[313661141,1707552646469,-1708.18,0.00021917,2]
[313661142,1707552646478,-528.45511969,0.00021917,2]
[313661143,1707552646487,-500.0,0.00021917,2]
[313661144,1707552646496,-500.0,0.00021917,2]
[313661145,1707552646505,-900.06,0.00021917,2]
[313661146,1707552646514,-500.0,0.00021917,2]
[313661147,1707552646523,-500.0,0.00021917,2]
[313661148,1707552646532,-500.0,0.00021917,2]
[313661149,1707552646541,-1955.77,0.00021917,2]
[313661150,1707552646550,-500.0,0.00021917,2]
[313661151,1707552646559,-2677.83,0.00021917,2]
[313661152,1707552646568,-500.0,0.00021917,2]
[313661153,1707552646577,-11240.28,0.00021917,2]
[313661154,1707552646586,-717.67,0.00021917,2]
[313661155,1707552646595,-500.0,0.00021917,2]
[313661156,1707552646604,-2410.93,0.00021917,2]
[313661157,1707552646613,-8675.33,0.00021917,2]
[313661158,1707552646622,-1464.26,0.00021917,2]
[313661159,1707552646630,-2269.9,0.00021917,2]
[313661160,1707552646639,-6049.76,0.00021917,2]
[313661161,1707552646648,-1026.21,0.00021917,2]
[313661162,1707552646657,-1094.41,0.00021917,2]
[313661163,1707552646666,-649.03874586,0.00021917,2]
[313661164,1707552646675,-2175.63,0.00021917,2]
[313661165,1707552646684,-820.92,0.00021917,2]
[313661166,1707552646693,-500.0,0.00021917,2]
[313661167,1707552646702,-1381.3,0.00021917,2]
[313661168,1707552646711,-500.0,0.00021917,2]
[313661169,1707552646720,-500.0,0.00021917,2]
[313661170,1707552646730,-11266.57,0.00021917,2]
[313661171,1707552646739,-568.1,0.00021917,2]
[313661172,1707552646752,-500.0,0.00021917,2]
[313661173,1707552646761,-11609.81,0.00021917,2]
[313661174,1707552646770,-20315.82,0.00021917,2]
[313661175,1707552646779,-500.0,0.00021917,2]
[313661176,1707552646790,-500.0,0.00021917,2]
[313661177,1707552646799,-936.11,0.00021917,2]
[313661178,1707552646808,-500.0,0.00021917,2]
[313661179,1707552646816,-603.73,0.00021917,2]
[313661180,1707552646828,-640.26,0.00021917,2]
[313661181,1707552646837,-500.0,0.00021917,2]
[313661182,1707552646846,-500.0,0.00021917,2]
[313661183,1707552646855,-500.0,0.00021917,2]
[313661184,1707552646864,-1659.62,0.00021917,2]
[313661185,1707552646873,-926.44,0.00021917,2]
[313661186,1707552646882,-500.0,0.00021917,2]
[313661187,1707552646891,-651.73,0.00021917,2]
[313661188,1707552646901,-500.0,0.00021917,2]
[313661189,1707552646910,-500.0,0.00021917,2]
[313661190,1707552646918,-500.0,0.00021917,2]
[313661191,1707552646927,-517.42569895,0.00021917,2]
[313661192,1707552646937,-1044.54,0.00021917,2]
[313661193,1707552646946,-6637.07,0.00021917,2]
[313661194,1707552646956,-1068.57,0.00021917,2]
[313661195,1707552646965,-500.0,0.00021917,2]
[313661196,1707552646974,-5363.07,0.00021917,2]
[313661197,1707552646983,-1405.6,0.00021917,2]
[313661198,1707552646992,-2105.6,0.00021917,2]
[313661199,1707552647001,-8074.38,0.00021917,2]
[313661200,1707552647010,-166.666666,0.00021918,2]
[313661201,1707552647019,-752.41389447,0.00021927,2]
[313661202,1707552647028,-312.07028377,0.00021927,2]
[313661203,1707552647038,-427.48779762,0.00022,2]
[313661204,1707552647047,-203.764,0.00022011,2]
[313661205,1707552647056,-155.74705592,0.00022026,2]
[313661206,1707552647066,-500.0,0.00022027,2]
[313661207,1707552647075,-500.0,0.00022027,2]
[313661208,1707552647084,-500.0,0.00022027,2]
[313661209,1707552647094,-648.93863703,0.00022027,2]
[313661210,1707552647103,-500.0,0.00022027,2]
[313661211,1707552647113,-500.0,0.00022027,2]
[313661212,1707552647122,-500.0,0.00022027,2]
[313661213,1707552647131,-500.0,0.00022027,2]
[313661214,1707552647140,-834.19,0.00022027,2]
[313661215,1707552647149,-500.0,0.00022027,2]
[313661216,1707552647158,-500.0,0.00022027,2]
[313661217,1707552647167,-500.0,0.00022027,2]
[313661218,1707552647177,-221.19583343,0.00022027,2]
[313661219,1707552647186,-520.11,0.00022027,2]
[313661220,1707552647195,-1893.27,0.00022027,2]
[313661221,1707552647205,-151.0,0.00022027,2]
[313661222,1707552647214,-500.0,0.00022027,2]
[313661223,1707552647223,-1998.72,0.00022027,2]
[313661224,1707552647232,-202.829818,0.00022027,2]
[313661225,1707552647241,-500.0,0.00022027,2]